bitfinex/quotes_BTCUSD_20260221
["timestamp","ask_amount","ask_price","bid_price","bid_amount"]
[1771641907847,0.07340742,68113.0,68107.0,0.0001935]
[1771641908048,0.09607506,68113.0,68106.0,0.07341419]
[1771641908255,0.09607506,68113.0,68107.0,0.07341378]
[1771641909312,0.09607506,68113.0,68106.0,0.07341419]
[1771641910689,0.07340878,68112.0,68105.0,0.07341588]
[1771641911093,0.07340878,68112.0,68106.0,0.07341483]
[1771641911580,0.02266764,68113.0,68104.0,0.1764]
[1771641911781,0.02266764,68115.0,68104.0,0.1764]
[1771641912161,0.07341224,68109.0,68104.0,0.1764]
[1771641912366,0.07341325,68108.0,68104.0,0.1764]
[1771641912604,0.07341448,68107.0,68104.0,0.1764]
[1771641913007,0.07341325,68108.0,68104.0,0.1764]
[1771641913749,0.0002,68107.0,68104.0,0.1764]
[1771641914035,0.07361477,68107.0,68104.0,0.1764]
[1771641914230,0.09628241,68107.0,68104.0,0.02379666]
[1771641914833,0.09628241,68107.0,68100.0,0.07358066]
[1771641914834,0.07341562,68106.0,68100.0,0.07358066]
[1771641915413,0.07341562,68106.0,68100.0,0.1386007]
[1771641915735,0.07341562,68106.0,68100.0,0.00016]
[1771641915884,0.09608326,68106.0,68100.0,0.00016]
[1771641916745,0.09608369,68105.0,68100.0,0.00016]
[1771641917251,0.02266764,68105.0,68100.0,0.0735813]
[1771641917446,0.02266764,68105.0,68102.0,0.07341905]
[1771641917738,0.0002,68107.0,68102.0,0.07341905]
[1771641917739,0.02286764,68107.0,68102.0,0.07341905]
[1771641917936,0.09628223,68107.0,68100.0,0.07358068]
[1771641918103,0.07341525,68106.0,68100.0,0.07358068]
[1771641919597,0.0734171,68105.0,68100.0,0.00016]
[1771641919948,0.0734171,68105.0,68100.0,0.00038]
[1771641920857,0.07341525,68106.0,68100.0,0.07380121]
[1771641921093,0.02286764,68107.0,68101.0,0.07342017]
[1771641921763,0.09628219,68107.0,68101.0,0.07342017]
[1771641922566,0.07341504,68106.0,68100.0,0.07379978]
[1771641923947,0.07341759,68104.0,68100.0,0.00038]
[1771641924360,0.0002,68107.0,68096.0,0.06502004]
[1771641924565,0.07342087,68101.0,68095.0,0.07342643]
[1771641925660,0.07342087,68101.0,68096.0,0.13852174]
[1771641926560,0.07341938,68102.0,68096.0,0.13852174]
[1771641927995,0.07342082,68101.0,68096.0,0.06509604]
[1771641928193,0.096088,68101.0,68100.0,0.00022]
[1771641928394,0.096088,68101.0,68100.0,0.0003173]
[1771641929422,0.096088,68101.0,68093.0,0.00022]
[1771641929423,0.29368831,68100.0,68093.0,0.00022]
[1771641929618,0.07342457,68098.0,68093.0,0.00022]
[1771641929821,0.02266764,68101.0,68093.0,0.00022]
[1771641930031,0.07342613,68096.0,68093.0,0.00022]
[1771641930459,0.07342726,68095.0,68093.0,0.00022]
[1771641930664,0.07496159,68152.0,68090.0,0.24161604]
[1771641930665,0.07343114,68091.0,68090.0,0.17652]
[1771641930878,0.07354815,68091.0,68090.0,0.17652]
[1771641931330,0.07354815,68091.0,68090.0,0.00016]
[1771641933966,0.00011701,68091.0,68090.0,0.00016]
[1771641934579,0.07354815,68091.0,68090.0,0.00016]
[1771641934780,0.07354815,68091.0,68090.0,0.00038]
[1771641935928,0.00011701,68091.0,68090.0,0.00038]
[1771641939315,0.07342688,68095.0,68090.0,0.06547604]
[1771641940078,0.07343003,68093.0,68090.0,0.06547604]
[1771641940492,0.07343066,68092.0,68090.0,0.06547604]
[1771641942825,0.07343114,68091.0,68090.0,0.06547604]
[1771641943030,0.07343114,68091.0,68090.0,0.00038]
[1771641944111,0.07342966,68093.0,68090.0,0.00038]
[1771641946475,0.07343042,68092.0,68090.0,0.00038]
[1771641947675,0.07342966,68093.0,68090.0,0.00038]
[1771641948195,0.07342834,68094.0,68090.0,0.06545264]
[1771641948389,0.0002,68093.0,68090.0,0.06545264]
[1771641951527,0.07362904,68093.0,68090.0,0.06545264]
[1771641954934,0.0541699,68093.0,68090.0,0.06545264]
[1771641956764,0.09841985,68092.0,68090.0,0.00038]
[1771641956932,0.07343114,68091.0,68090.0,0.00038]
[1771641957494,0.09841985,68092.0,68090.0,0.00038]
[1771641957650,0.02498945,68104.0,68091.0,0.062442]
[1771641958026,0.07342868,68094.0,68091.0,0.062442]
[1771641958169,0.07342926,68093.0,68090.0,0.00038]
[1771641959722,0.07343114,68091.0,68090.0,0.00038]
[1771641960121,0.07343077,68093.0,68090.0,0.00038]
[1771641961681,0.0736283,68094.0,68090.0,0.00038]
[1771641962137,0.07342923,68093.0,68090.0,0.00038]
[1771641962345,0.0736283,68094.0,68090.0,0.00038]
[1771641962697,0.0002,68094.0,68090.0,0.00038]
[1771641963432,0.07342905,68093.0,68090.0,0.00038]
[1771641963816,0.29386721,68105.0,68091.0,0.02453243]
[1771641963990,0.07341183,68109.0,68102.0,0.07341822]
[1771641964185,0.00016,68110.0,68091.0,0.07343114]
[1771641964186,0.07341319,68108.0,68091.0,0.07343114]
[1771641964409,0.07341454,68107.0,68100.0,0.07342093]
[1771641964619,0.07341508,68106.0,68100.0,0.07342093]
[1771641965017,0.001,68105.0,68100.0,0.07342093]
[1771641965418,0.07341508,68106.0,68100.0,0.07342093]
[1771641966293,0.02498945,68109.0,68097.0,0.062442]
[1771641966476,0.07341715,68104.0,68098.0,0.073423]
[1771641966893,0.09840816,68103.0,68091.0,0.07343114]
[1771641967119,0.07342206,68100.0,68094.0,0.0734273]
[1771641967268,0.07342327,68099.0,68092.0,0.0734297]
[1771641967471,0.07342366,68098.0,68093.0,0.07342897]
[1771641968150,0.07342321,68100.0,68094.0,0.07342758]
[1771641968779,0.07342295,68099.0,68093.0,0.07342897]
[1771641968981,0.07342321,68100.0,68094.0,0.07342771]
[1771641969579,0.02498945,68103.0,68090.0,0.00038]
[1771641969922,0.07332387,68098.0,68091.0,0.07343085]
[1771641970096,0.07342476,68097.0,68091.0,0.07343085]
[1771641970439,0.07342689,68095.0,68090.0,0.00038]
[1771641970980,0.07342689,68095.0,68090.0,0.0006593]
[1771641971380,0.07342577,68096.0,68090.0,0.07409142]
[1771641973728,0.07342577,68096.0,68094.0,0.00022]
[1771641973943,0.07342649,68097.0,68094.0,0.00022]
[1771641974944,0.07342649,68097.0,68094.0,0.0004993]
[1771641979612,0.07342649,68097.0,68088.0,0.22338798]
[1771641979814,0.07342649,68097.0,68091.0,0.07343067]
[1771641980763,0.07342649,68097.0,68094.0,0.00022]
[1771641981773,0.07342385,68098.0,68094.0,0.00022]
[1771641983805,0.07342483,68097.0,68094.0,0.00022]
[1771641984571,0.07342385,68098.0,68094.0,0.00022]
[1771641984743,0.07342482,68097.0,68094.0,0.00022]
[1771641987476,0.07362482,68097.0,68094.0,0.00022]
[1771641987676,0.0002,68097.0,68094.0,0.00022]
[1771641988662,0.07362498,68097.0,68094.0,0.00022]
[1771641989897,0.07342607,68096.0,68091.0,0.07343067]
[1771641990105,0.07362498,68097.0,68091.0,0.07343067]
[1771641990924,0.07362498,68097.0,68092.0,0.07342983]
[1771641991133,0.0002,68097.0,68092.0,0.07342983]
[1771641993339,0.07362484,68097.0,68092.0,0.07342983]
[1771641997116,0.07362484,68097.0,68091.0,0.07343067]
[1771641998505,0.07362575,68097.0,68088.0,0.06184111]
[1771641998804,0.07342824,68094.0,68088.0,0.13527457]
[1771641999542,0.07342787,68095.0,68089.0,0.07343292]
[1771641999734,0.0734261,68096.0,68090.0,0.07343202]
[1771642000021,0.07342685,68095.0,68090.0,0.07343202]
[1771642000423,0.07342685,68095.0,68092.0,0.00022]
[1771642001735,0.07342793,68094.0,68092.0,0.00022]
[1771642002672,0.07342685,68095.0,68092.0,0.00022]
[1771642003240,0.07342791,68094.0,68092.0,0.00022]
[1771642004054,0.07342685,68095.0,68092.0,0.00022]
[1771642004847,0.07342828,68094.0,68092.0,0.00022]
[1771642005045,0.07343045,68092.0,68087.0,0.07365544]
[1771642005248,0.07343045,68092.0,68087.0,0.00022]
[1771642005658,0.07343398,68089.0,68087.0,0.00022]
[1771642005853,0.07343398,68089.0,68085.0,0.00022]
[1771642005854,0.07343653,68086.0,68085.0,0.00022]
[1771642006059,0.07343545,68087.0,68080.0,0.00038]
[1771642006060,0.0970268,68087.0,68080.0,0.00038]
[1771642006256,0.0970268,68087.0,68082.0,0.00033701]
[1771642006257,0.07343925,68084.0,68082.0,0.00033701]
[1771642006631,0.07343925,68084.0,68080.0,0.00038]
[1771642006838,0.07343993,68083.0,68080.0,0.00038]
[1771642007258,0.0970306,68084.0,68080.0,0.00038]
[1771642007957,0.0002,68106.0,68075.0,0.00022]
[1771642007958,0.29375908,68083.0,68075.0,0.00022]
[1771642008238,0.07344854,68075.0,68072.0,0.0001972]
[1771642008467,0.07345011,68074.0,68072.0,0.0001972]
[1771642008833,0.07356586,68075.0,68072.0,0.0001972]
[1771642009932,0.07345056,68073.0,68072.0,0.0001972]
[1771642010061,0.07345056,68073.0,68069.0,0.00022]
[1771642010062,0.07345271,68071.0,68069.0,0.00022]
[1771642010474,0.07345209,68072.0,68069.0,0.00022]
[1771642010719,0.0970437,68073.0,68069.0,0.00022]
[1771642010967,0.000117,68075.0,68062.0,0.00022]
[1771642011169,0.000117,68075.0,68050.0,0.02338012]
[1771642011170,0.02359135,68069.0,68050.0,0.06234873]
[1771642011296,0.00016,68070.0,68050.0,0.06234873]
[1771642011297,0.07346121,68064.0,68057.0,0.06218873]
[1771642011507,0.07345487,68069.0,68057.0,0.0858384]
[1771642011733,0.07346245,68062.0,68058.0,0.06218873]
[1771642011910,0.07345487,68069.0,68059.0,0.02364967]
[1771642012298,0.07346285,68062.0,68059.0,0.02364967]
[1771642012580,0.07346285,68062.0,68056.0,0.06218873]
[1771642013544,0.07346285,68062.0,68055.0,0.07346818]
[1771642015444,0.07346363,68061.0,68055.0,0.07346818]
[1771642015617,0.07346363,68061.0,68055.0,0.07368818]
[1771642017646,0.07346285,68062.0,68055.0,0.07368818]
[1771642019153,0.07346357,68061.0,68055.0,0.07368818]
[1771642022188,0.02375135,68070.0,68056.0,0.06218873]
[1771642022375,0.02375135,68070.0,68055.0,0.00022]
[1771642022376,0.07345705,68067.0,68061.0,0.15930141]
[1771642022671,0.00016,68070.0,68062.0,0.0734623]
[1771642022672,0.07345673,68068.0,68062.0,0.0734623]
[1771642023224,0.0734575,68067.0,68061.0,0.09711268]
[1771642023988,0.0734575,68067.0,68062.0,0.07346242]
[1771642024192,0.0734575,68067.0,68061.0,0.09711268]
[1771642024795,7.7e-07,68067.0,68062.0,0.07346242]
[1771642024993,7.7e-07,68068.0,68062.0,0.07346242]
[1771642025199,0.07345724,68068.0,68062.0,0.07346242]
[1771642035034,0.07345724,68068.0,68062.0,0.07368242]
[1771642036212,0.07345732,68067.0,68062.0,0.00022]
[1771642036683,0.07345732,68067.0,68062.0,0.0736822]
[1771642036891,0.07345724,68068.0,68062.0,0.0736822]
[1771642040765,0.07345706,68067.0,68062.0,0.0736822]
[1771642040970,0.07345706,68067.0,68062.0,0.00022]
[1771642043342,0.07345822,68066.0,68062.0,0.00022]
[1771642043543,0.07302528,68066.0,68062.0,0.00022]
[1771642044384,0.07345946,68065.0,68062.0,0.00022]
[1771642046403,0.00020077,68068.0,68062.0,0.00022]
[1771642046597,0.00016,68070.0,68063.0,0.0734612]
[1771642046816,0.07345677,68069.0,68063.0,0.0734612]
[1771642047608,0.07345598,68068.0,68063.0,0.02471478]
[1771642048210,0.0002,68067.0,68063.0,0.02471478]
[1771642048838,0.0002,68067.0,68062.0,0.07368206]
[1771642049846,0.07345813,68066.0,68062.0,0.00022]
[1771642050043,0.07365747,68067.0,68062.0,0.00022]
[1771642050467,0.0002,68067.0,68055.0,0.00022]
[1771642050631,0.0002,68067.0,68055.0,0.07368935]
[1771642050632,0.07346394,68061.0,68055.0,0.07368935]
[1771642053256,0.07346479,68060.0,68055.0,0.00022]
[1771642054161,0.09769795,68060.0,68054.0,0.07346927]
[1771642054578,0.09769795,68060.0,68055.0,0.00022]
[1771642056139,0.29384605,68063.0,68051.0,0.07347365]
[1771642056140,0.07346801,68057.0,68051.0,0.07347365]
[1771642056338,0.07346907,68056.0,68050.0,0.07363475]
[1771642056569,0.04956454,68056.0,68050.0,0.07363475]
[1771642057359,0.07346801,68057.0,68051.0,0.07347416]
[1771642061112,0.07346801,68057.0,68051.0,0.07369416]
[1771642061293,0.07366801,68057.0,68051.0,0.07369416]
[1771642061491,0.0002,68057.0,68046.0,0.29391604]
[1771642061737,0.07347163,68054.0,68044.0,0.07370078]
[1771642062058,0.02444626,68053.0,68048.0,0.07347724]
[1771642062257,0.07347163,68054.0,68048.0,0.0547861]
[1771642062677,0.07347163,68054.0,68047.0,0.07347846]
[1771642062883,0.0002,68057.0,68049.0,0.07347541]
[1771642063086,0.07346601,68059.0,68053.0,0.0580211]
[1771642063292,0.07346726,68058.0,68053.0,0.0580211]
[1771642063690,0.07346911,68056.0,68050.0,0.09697597]
[1771642064226,0.07346911,68056.0,68049.0,0.13149651]
[1771642064850,0.07347018,68055.0,68049.0,0.13149651]
[1771642066486,0.07347056,68056.0,68049.0,0.13149651]
[1771642066747,0.07347048,68055.0,68049.0,0.13149651]
[1771642067192,0.0734712,68054.0,68049.0,0.0580211]
[1771642068309,0.0734712,68054.0,68050.0,0.00022]
[1771642068655,0.07347217,68053.0,68050.0,0.00022]
[1771642068855,0.0734712,68054.0,68050.0,0.00022]
[1771642070108,0.073668,68057.0,68050.0,0.07369466]
[1771642070310,0.00016,68060.0,68051.0,0.09697581]
[1771642070602,0.29401949,68060.0,68051.0,0.09697581]
[1771642070803,0.29386267,68059.0,68051.0,0.02350243]
[1771642071101,0.07346862,68057.0,68051.0,0.02350243]
[1771642071424,0.07273362,68057.0,68051.0,0.09697658]
[1771642071620,0.07346898,68056.0,68051.0,0.02350243]
[1771642071822,0.00016,68060.0,68050.0,0.07369351]
[1771642071823,0.05377755,68060.0,68050.0,0.00022]
[1771642072028,0.4409439,68067.0,68058.0,0.0734661]
[1771642072029,0.07345919,68065.0,68058.0,0.0734661]
[1771642072190,0.07345888,68066.0,68058.0,0.0734661]
[1771642072923,0.07345888,68066.0,68060.0,0.07346415]
[1771642076026,0.073659,68067.0,68061.0,0.07346342]
[1771642076915,0.07345829,68066.0,68060.0,0.07346415]
[1771642077317,0.073659,68067.0,68060.0,0.07346415]
[1771642077556,0.0734585,68066.0,68060.0,0.07346415]
[1771642077969,0.00016,68070.0,68056.0,0.22399008]
[1771642078176,0.00016,68070.0,68066.0,0.0734576]
[1771642080471,0.00016,68070.0,68065.0,0.0969612]
[1771642081231,0.00016,68070.0,68065.0,0.07345877]
[1771642082302,0.00036,68070.0,68065.0,0.07345877]
[1771642088657,0.07381384,68070.0,68065.0,0.07345877]
[1771642089189,0.07381384,68070.0,68064.0,0.07345998]
[1771642089354,0.00036,68070.0,68065.0,0.07345912]
[1771642090045,0.07381407,68070.0,68064.0,0.07345998]
[1771642092097,0.07381407,68070.0,68065.0,0.07345914]
[1771642094348,0.00036,68070.0,68065.0,0.07345914]
[1771642094843,0.00036,68070.0,68065.0,0.07367914]
[1771642095343,0.07381386,68070.0,68065.0,0.07367914]
[1771642099585,0.07381386,68070.0,68065.0,0.00022]
[1771642101190,0.07381386,68070.0,68065.0,0.07367899]
[1771642102744,0.00036,68070.0,68065.0,0.07367899]
[1771642103419,0.07381387,68070.0,68065.0,0.07367899]
[1771642105798,0.00036,68070.0,68065.0,0.07367899]
[1771642106245,0.07381381,68070.0,68065.0,0.07367899]
[1771642107816,0.07381381,68070.0,68065.0,0.00022]
[1771642114925,0.07381381,68070.0,68065.0,0.07367918]
[1771642115100,0.07381381,68070.0,68065.0,0.00022]
[1771642116326,0.00036,68070.0,68065.0,0.00022]
[1771642117234,0.00036,68070.0,68065.0,0.07367824]
[1771642119248,0.07381382,68070.0,68065.0,0.00022]
[1771642120394,0.07345774,68067.0,68061.0,0.07346306]
[1771642121271,0.07345774,68067.0,68060.0,0.07346284]
[1771642121471,0.07345887,68066.0,68060.0,0.07346284]
[1771642123363,0.07345887,68066.0,68059.0,0.07346545]
[1771642124002,0.07345887,68066.0,68060.0,0.07346425]
[1771642126717,0.07345887,68066.0,68060.0,0.07368425]
[1771642129541,0.07345887,68066.0,68061.0,0.07346332]
[1771642130395,0.07345878,68067.0,68061.0,0.07346332]
[1771642130594,0.0734584,68066.0,68059.0,0.07346381]
[1771642130827,0.0734584,68066.0,68060.0,0.07346406]
[1771642133605,0.0737164,68066.0,68060.0,0.07346406]
[1771642133945,0.0737164,68066.0,68060.0,0.07368406]
[1771642136776,0.0737164,68066.0,68061.0,0.07346347]
[1771642140060,0.000258,68066.0,68061.0,0.07368347]
[1771642140871,0.07371615,68066.0,68061.0,0.07368347]
[1771642141833,0.000258,68066.0,68061.0,0.07368347]
[1771642145246,0.00036,68070.0,68061.0,0.00022]
[1771642145495,0.000322,68072.0,68061.0,0.00022]
[1771642145496,0.000322,68072.0,68067.0,0.07345677]
[1771642145713,0.000322,68072.0,68067.0,0.09739272]
[1771642145880,0.000322,68072.0,68067.0,0.07345677]
[1771642146922,0.07345318,68071.0,68065.0,0.07345743]
[1771642147609,0.0002,68066.0,68065.0,0.07345743]
[1771642153276,0.000322,68072.0,68067.0,0.07345675]
[1771642155798,0.07377365,68072.0,68067.0,0.07345675]
[1771642156301,0.07377365,68072.0,68066.0,0.07345792]
[1771642156611,0.07344031,68072.0,68066.0,0.07345792]
[1771642156815,0.07344031,68072.0,68066.0,0.07345778]
[1771642159303,0.07344031,68072.0,68064.0,0.213762]
[1771642159522,0.07344031,68072.0,68066.0,0.07345751]
[1771642160705,0.07364031,68072.0,68066.0,0.07345751]
[1771642161544,0.07345273,68071.0,68066.0,0.07345751]
[1771642164388,0.07345273,68071.0,68065.0,0.0736774]
[1771642164566,0.07345624,68068.0,68065.0,0.00022]
[1771642164784,0.07345568,68069.0,68065.0,0.00022]
[1771642165978,0.07345598,68068.0,68065.0,0.00022]
[1771642166493,0.07345568,68069.0,68065.0,0.00022]
[1771642167563,0.07345568,68069.0,68063.0,0.07345945]
[1771642171437,0.07345559,68070.0,68064.0,0.07345965]
[1771642171624,0.07345559,68070.0,68063.0,0.07345945]
[1771642171625,0.07345526,68069.0,68063.0,0.07345945]
[1771642172574,0.07345526,68069.0,68064.0,0.07346014]
[1771642175667,0.07345559,68070.0,68064.0,0.07346014]
[1771642176054,0.07345494,68069.0,68064.0,0.07346014]
[1771642176216,0.07345559,68070.0,68064.0,0.07346014]
[1771642176868,0.07345495,68069.0,68064.0,0.07346014]
[1771642177058,0.07345559,68070.0,68064.0,0.07346014]
[1771642177410,0.07345499,68069.0,68064.0,0.07346014]
[1771642180506,0.07345517,68069.0,68064.0,0.07368014]
[1771642180795,0.07345559,68070.0,68064.0,0.07368014]
[1771642181201,0.07345495,68069.0,68064.0,0.07368014]
[1771642181577,0.07345559,68070.0,68064.0,0.07368014]
[1771642181750,0.07345516,68069.0,68064.0,0.00022]
[1771642182807,0.07345516,68069.0,68064.0,0.07368024]
[1771642184726,0.07345516,68069.0,68064.0,0.00022]
[1771642184941,0.07345691,68068.0,68063.0,0.00022]
[1771642185238,0.07345753,68067.0,68063.0,0.00022]
[1771642185694,0.07345812,68066.0,68063.0,0.00022]
[1771642185910,0.07345753,68067.0,68063.0,0.00022]
[1771642187154,0.07345781,68068.0,68063.0,0.00022]
[1771642187508,0.07345705,68067.0,68063.0,0.00022]
[1771642188539,0.07345705,68067.0,68064.0,0.00022]
[1771642189084,0.07345781,68068.0,68064.0,0.00022]
[1771642196158,0.07365678,68069.0,68064.0,0.00022]
[1771642200694,0.07345598,68068.0,68064.0,0.00022]
[1771642202237,0.07365678,68069.0,68064.0,0.00022]
[1771642202544,0.0002,68069.0,68062.0,0.04892599]
[1771642202701,0.29402081,68069.0,68061.0,0.07368171]
[1771642202904,0.07345823,68066.0,68059.0,0.07346566]
[1771642203118,0.07345708,68067.0,68060.0,0.07346459]
[1771642203442,0.07345708,68067.0,68061.0,0.07346321]
[1771642204953,0.07345824,68066.0,68061.0,0.07346321]
[1771642206380,0.07345824,68066.0,68061.0,0.07341857]
[1771642206759,0.07345824,68066.0,68060.0,0.07346459]
[1771642208364,0.07345824,68066.0,68060.0,0.07368459]
[1771642212790,0.07345824,68066.0,68060.0,0.07363995]
[1771642214913,0.07345824,68066.0,68061.0,0.07346337]
[1771642215393,0.07365824,68066.0,68061.0,0.07346337]
[1771642216761,0.0002,68066.0,68061.0,0.07346337]
[1771642219539,0.0002,68066.0,68061.0,0.07341873]
[1771642220516,0.07346177,68063.0,68060.0,0.00022]
[1771642221996,0.0734629,68062.0,68056.0,0.07368717]
[1771642224277,0.0734629,68062.0,68057.0,0.0734678]
[1771642226354,0.0734632,68063.0,68057.0,0.0734678]
[1771642226740,0.07345704,68067.0,68061.0,0.07346277]
[1771642227110,0.0734583,68066.0,68060.0,0.14614724]
[1771642227456,0.0734583,68066.0,68060.0,0.12153841]
[1771642228007,0.0002,68062.0,68060.0,0.12153841]
[1771642228211,0.0002,68062.0,68060.0,0.14614724]
[1771642228618,0.07365681,68068.0,68061.0,0.0734634]
[1771642228778,0.07365681,68068.0,68061.0,0.09807223]
[1771642228987,0.07345758,68067.0,68061.0,0.09807223]
[1771642231810,0.07345758,68067.0,68062.0,0.07346238]
[1771642232125,0.07345758,68067.0,68062.0,0.02460883]
[1771642232449,0.0002,68068.0,68063.0,0.07346095]
[1771642232657,0.0002,68068.0,68062.0,0.09806928]
[1771642232795,0.07365632,68068.0,68062.0,0.09806928]
[1771642234138,0.07365632,68068.0,68062.0,0.09802464]
[1771642236345,0.07365632,68068.0,68062.0,0.07346045]
[1771642242120,0.07365632,68068.0,68061.0,0.07346165]
[1771642242121,0.0002,68068.0,68057.0,0.02442546]
[1771642242520,0.07346193,68063.0,68058.0,0.02442546]
[1771642244985,0.07346193,68063.0,68058.0,0.02542546]
[1771642245342,0.07346193,68063.0,68058.0,0.02442546]
[1771642245636,0.07346193,68063.0,68058.0,0.02542546]
[1771642245947,0.07346193,68064.0,68058.0,0.02442546]
[1771642246117,0.07345954,68065.0,68058.0,0.02442546]
[1771642246334,0.07345954,68065.0,68058.0,0.02542546]
[1771642247595,0.07345954,68065.0,68058.0,0.02464546]
[1771642247914,0.07345856,68066.0,68058.0,0.02564546]
[1771642248366,0.07345856,68066.0,68058.0,0.02464546]
[1771642249073,0.07345856,68066.0,68058.0,0.02564546]
[1771642249374,0.07345856,68066.0,68058.0,0.02464546]
[1771642251495,0.07345856,68066.0,68058.0,0.02564546]
[1771642251789,0.07345856,68066.0,68058.0,0.02464546]
[1771642251946,0.07345856,68066.0,68058.0,0.02564546]
[1771642252572,0.07346461,68060.0,68056.0,0.00022]
[1771642253144,0.07346595,68059.0,68056.0,0.00022]
[1771642253803,0.07347198,68054.0,68048.0,0.147922]
[1771642254102,0.07346966,68056.0,68048.0,0.147922]
[1771642254297,0.07346966,68056.0,68048.0,0.22139923]
[1771642255412,0.07347041,68055.0,68048.0,0.147922]
[1771642255815,0.07346966,68056.0,68048.0,0.22139916]
[1771642256046,0.07346966,68056.0,68049.0,0.00122]
[1771642256387,0.0734681,68057.0,68049.0,0.07369619]
[1771642258525,0.07346892,68056.0,68049.0,0.07369619]
[1771642258715,0.07346892,68056.0,68049.0,0.00022]
[1771642259219,0.07346892,68056.0,68049.0,0.07369634]
[1771642259725,0.07346892,68056.0,68049.0,0.00022]
[1771642259960,0.07347187,68054.0,68049.0,0.00022]
[1771642260581,0.07347188,68055.0,68049.0,0.00022]
[1771642261089,0.07347107,68054.0,68049.0,0.00022]
[1771642269753,0.07347229,68053.0,68049.0,0.00022]
[1771642270176,0.07347107,68054.0,68049.0,0.00022]
[1771642270371,0.07347228,68053.0,68049.0,0.00022]
[1771642270953,0.0734748,68051.0,68049.0,0.00022]
[1771642271174,0.07347538,68050.0,68049.0,0.00022]
[1771642271731,0.0734748,68051.0,68049.0,0.00022]
[1771642272511,0.07347495,68052.0,68049.0,0.00022]
[1771642272713,0.07347402,68053.0,68049.0,0.00022]
[1771642286761,0.07367402,68053.0,68049.0,0.00022]
[1771642291320,0.07367402,68053.0,68048.0,0.000122]
[1771642291529,0.04574669,68051.0,68047.0,0.00061044]
[1771642291727,0.09711391,68052.0,68047.0,0.00061044]
[1771642292051,0.07347324,68052.0,68047.0,0.00061044]
[1771642293083,0.07347324,68052.0,68049.0,0.00022]
[1771642293929,0.00016,68050.0,68040.0,0.342569]
[1771642294142,0.00016,68050.0,68045.0,0.07347971]
[1771642294336,0.07347324,68052.0,68045.0,0.07347971]
[1771642294535,0.07347324,68052.0,68046.0,0.07347961]
[1771642294699,0.07347324,68052.0,68045.0,0.07347971]
[1771642299638,0.07347324,68052.0,68045.0,0.07369971]
[1771642300002,0.07347324,68052.0,68046.0,0.07347948]
[1771642301484,0.0002,68066.0,68056.0,0.07346787]
[1771642301713,0.07346082,68064.0,68056.0,0.07346831]
[1771642302088,0.07346071,68064.0,68056.0,0.07346831]
[1771642302232,0.07346141,68063.0,68057.0,0.07346691]
[1771642302438,0.07346071,68064.0,68057.0,0.07346691]
[1771642302824,0.07346071,68064.0,68057.0,0.07331989]
[1771642303469,0.07346071,68064.0,68058.0,0.07346659]
[1771642304048,0.0734615,68063.0,68057.0,0.07331989]
[1771642305203,0.0734615,68063.0,68057.0,0.07317287]
[1771642306776,0.0736615,68063.0,68057.0,0.07317287]
[1771642320480,0.07346248,68062.0,68057.0,0.07317287]
[1771642321578,0.07346248,68062.0,68056.0,0.07346727]
[1771642322637,0.07346396,68061.0,68055.0,0.07346817]
[1771642322840,0.0002,68063.0,68050.0,0.16618989]
[1771642323015,0.0002,68063.0,68052.0,0.07347225]
[1771642323172,0.14478059,68058.0,68051.0,0.07347245]
[1771642323378,0.14478059,68058.0,68052.0,0.07347296]
[1771642324207,0.09721253,68058.0,68052.0,0.07347296]
[1771642326131,0.09721253,68058.0,68052.0,0.07369296]
[1771642327056,0.02374509,68058.0,68053.0,0.07347175]
[1771642327533,0.07346746,68059.0,68053.0,0.07347175]
[1771642330022,0.07346746,68059.0,68052.0,0.07369296]
[1771642330023,0.07346709,68058.0,68052.0,0.07369296]
[1771642333062,0.07346709,68058.0,68053.0,0.07347209]
[1771642333973,0.07346709,68058.0,68052.0,0.07369296]
[1771642346566,0.07346709,68058.0,68053.0,0.07347213]
[1771642347570,0.07366746,68059.0,68053.0,0.07347213]
[1771642349761,0.07346677,68058.0,68053.0,0.07347213]
[1771642350531,0.0977171,68058.0,68052.0,0.07369296]
[1771642351582,0.0977171,68058.0,68053.0,0.07347211]
[1771642351892,0.0979171,68058.0,68053.0,0.07347211]
[1771642353777,0.02445033,68058.0,68053.0,0.07347211]
[1771642357129,0.02445033,68058.0,68054.0,0.07347079]
[1771642357492,0.0002,68058.0,68054.0,0.07347079]
[1771642363882,0.0002,68058.0,68054.0,0.07382429]
[1771642365454,0.06386646,68060.0,68054.0,0.07382429]
[1771642368055,0.07366142,68063.0,68057.0,0.07346682]
[1771642368462,0.07346284,68062.0,68056.0,0.07346834]
[1771642368878,0.07346284,68062.0,68056.0,0.07382184]
[1771642371242,0.07366284,68062.0,68056.0,0.07382184]
[1771642373993,0.07346369,68061.0,68056.0,0.0003535]
[1771642377433,0.07366284,68062.0,68056.0,0.07382192]
[1771642377795,0.07346369,68061.0,68056.0,0.0003535]
[1771642378093,0.07366369,68061.0,68056.0,0.0003535]
[1771642380896,0.0002,68061.0,68056.0,0.07382205]
[1771642381039,0.0002,68061.0,68057.0,0.07346776]
[1771642381235,0.07365646,68068.0,68061.0,0.07346293]
[1771642381587,0.07365646,68068.0,68060.0,0.0734639]
[1771642381588,0.07345743,68067.0,68060.0,0.0734639]
[1771642381773,0.00016,68070.0,68058.0,0.04158959]
[1771642381976,0.07361438,68070.0,68064.0,0.07345963]
[1771642382338,0.0005902,68069.0,68064.0,0.07345963]
[1771642382744,0.07404614,68069.0,68063.0,0.07346117]
[1771642382943,0.07404614,68069.0,68064.0,0.07345998]
[1771642382944,0.0005902,68069.0,68064.0,0.07345998]
[1771642383139,0.0005902,68069.0,68065.0,0.07345918]
[1771642383464,0.0005902,68069.0,68064.0,0.07345998]
[1771642384214,0.0005902,68069.0,68063.0,0.07369066]
[1771642384215,0.07345595,68068.0,68063.0,0.0002312]
[1771642384344,0.07404539,68069.0,68063.0,0.07369231]
[1771642384544,0.0005902,68069.0,68064.0,0.07345983]
[1771642385709,0.07345595,68068.0,68063.0,0.0002312]
[1771642386943,0.07404518,68069.0,68063.0,0.0002312]
[1771642386944,0.0005902,68069.0,68064.0,0.07346]
[1771642387251,0.07345595,68068.0,68063.0,0.07369223]
[1771642387889,0.07345595,68068.0,68063.0,0.0002312]
[1771642388318,0.0005902,68069.0,68064.0,0.07346019]
[1771642390748,0.07345595,68068.0,68063.0,0.0002312]
[1771642391123,0.07365595,68068.0,68063.0,0.0002312]
[1771642391916,0.0002,68068.0,68064.0,0.07346027]
[1771642392479,0.0002,68071.0,68063.0,0.0002312]
[1771642392612,0.00016,68080.0,68063.0,0.0002312]
[1771642392613,0.00016,68080.0,68069.0,0.07345398]
[1771642393017,0.00016,68080.0,68069.0,0.07356288]
[1771642393215,0.00016,68080.0,68069.0,0.0001089]
[1771642393499,0.07364947,68080.0,68074.0,0.07344914]
[1771642394589,0.07364947,68080.0,68073.0,0.07345045]